[Event "44th Chess Olympiad Women 2022"]
[Site "Chennai"]
[Date "2022.08.02"]
[Round "5.46"]
[White "Dunat, Kinberlie"]
[Black "Fawaz, Nadia"]
[Result "0-1"]
[ECO "C50"]
[WhiteElo "1398"]
[BlackElo "1214"]
[Annotator "NA RC COMBH"]
[PlyCount "90"]
[EventDate "2022.07.29"]
[EventType "team-tourn"]
[EventCountry "IND"]
[SourceTitle "playchess.com"]
[Source "ChessBase"]
[SourceQuality "1"]
[WhiteTeam "Haiti"]
[BlackTeam "Lebanon"]
[WhiteTeamCountry "HAI"]
[BlackTeamCountry "LBN"]
[TimeControl "40/5400+30:1800+30"]

1. e4 {[%emt 0:00:03]} e5 {[%emt 0:00:16]} 2. Nf3 {[%emt 0:00:14]} Nc6 {[%emt 0:00:19]} 3. Bc4 {[%emt 0:00:21]} Be7 {[%emt 0:01:50]} 4. d3 {[%emt 0:01:19]} d6 {[%emt 0:00:58]} 5. Be3 {[%emt 0:00:37]} Nf6 {[%emt 0:01:03]} 6. c3 {[%emt 0:00:55]} Bg4 {[%emt 0:06:36]} 7. Nbd2 {[%emt 0:00:34]} Na5 {[%emt 0:10:25]} 8. Bb3 {[%emt 0:01:43]} Nxb3 {[%emt 0:03:12]} 9. axb3 {[%emt 0:00:29]} O-O {[%emt 0:00:52]} 10. Rxa7 {[%emt 0:00:32]} Rxa7 {[%emt 0:00:34]} 11. Bxa7 {[%emt 0:00:25]} b6 {[%emt 0:00:15]} 12. h3 {[%emt 0:01:28]} Bxf3 {[%emt 0:00:26]} 13. Nxf3 {[%emt 0:01:26]} Qa8 {[%emt 0:00:47]} 14. Qa1 {[%emt 0:00:13]} Qb7 {[%emt 0:00:16]} 15. Bxb6 {[%emt 0:03:26]} Qxb6 {[%emt 0:00:09]} 16. b4 {[%emt 0:00:47]} Nh5 {[%emt 0:01:20]} 17. O-O {[%emt 0:00:35]} Nf4 {[%emt 0:01:06]} 18. Qd1 {[%emt 0:02:16]} Qb5 {[%emt 0:01:29]} 19. d4 {[%emt 0:02:56]} exd4 {[%emt 0:00:43]} 20. Nxd4 {[%emt 0:00:49]} Qg5 {[%emt 0:02:21]} 21. Qf3 {[%emt 0:02:01]} Ng6 {[%emt 0:04:34]} 22. g3 {[%emt 0:08:48]} Ne5 {[%emt 0:04:37]} 23. Qe2 {[%emt 0:06:49]} Nd7 {[%emt 0:11:05]} 24. Kh2 {[%emt 0:04:28]} g6 {[%emt 0:18:43]} 25. Qd1 {[%emt 0:07:56]} Ra8 {[%emt 0:10:08]} 26. Qe2 {[%emt 0:06:47]} Bf8 {[%emt 0:00:48]} 27. Nb5 {[%emt 0:03:40]} Qd8 {[%emt 0:00:50]} 28. Qc4 {[%emt 0:02:58]} Rb8 {[%emt 0:02:25]} 29. Nd4 {[%emt 0:00:47]} Ne5 {[%emt 0:00:45]} 30. Qe2 {[%emt 0:01:02]} c5 {[%emt 0:00:47]} 31. bxc5 {[%emt 0:03:15]} dxc5 {[%emt 0:00:12]} 32. Nb5 {[%emt 0:03:38]} Qb6 {[%emt 0:00:37]} 33. c4 {[%emt 0:03:51]} Nxc4 {[%emt 0:00:08]} 34. Qxc4 {[%emt 0:02:09]} Qxb5 {[%emt 0:00:11]} 35. Qxb5 {[%emt 0:04:44]} Rxb5 {[%emt 0:00:05]} 36. Rb1 {[%emt 0:01:19]} Bg7 {[%emt 0:00:09]} 37. b3 {[%emt 0:03:30]} c4 {[%emt 0:00:07]} 38. b4 {[%emt 0:05:28]} Bf8 {[%emt 0:00:08]} 39. Rc1 {[%emt 0:02:07]} Rxb4 {[%emt 0:00:08]} 40. Rc2 {[%emt 0:00:52]} Bg7 {[%emt 0:00:09]} 41. h4 {[%emt 0:30:52]} c3 {[%emt 0:30:12]} 42. Kh3 {[%emt 0:00:46]} Rb2 {[%emt 0:00:09]} 43. Rc1 {[%emt 0:01:36]} Rxf2 {[%emt 0:00:14]} 44. g4 {[%emt 0:01:07]} c2 {[%emt 0:00:39]} 45. Kg3 {[%emt 0:00:27]} Bb2 {[%emt 0:00:29]} 0-1

[Event "44th Chess Olympiad Women 2022"]
[Site "Chennai"]
[Date "2022.08.02"]
[Round "5.47"]
[White "Zhang, Jasmine Haomo"]
[Black "Farrugia, Jamie"]
[Result "1-0"]
[ECO "B13"]
[WhiteElo "1972"]
[BlackElo "1547"]
[Annotator "TA"]
[PlyCount "105"]
[EventDate "2022.07.29"]
[EventType "team-tourn"]
[EventCountry "IND"]
[SourceTitle "playchess.com"]
[Source "ChessBase"]
[SourceQuality "1"]
[WhiteTeam "New Zealand"]
[BlackTeam "Malta"]
[WhiteTeamCountry "NZL"]
[BlackTeamCountry "MLT"]
[TimeControl "40/5400+30:1800+30"]

{[%evp 22,105,29,30,31,25,29,-21,-35,-22,-31,-35,-14,-45,-20,-23,0,0,0,0,0,-295,-288,-493,-468,-499,-502,-464,-515,-492,-491,-461,-298,-698,-684,-687,-114,-659,-4,-500,-446,-391,-69,-240,-41,-30,160,49,172,138,127,127,220,234,256,239,570,569,567,558,570,563,634,640,683,668,29969,29971,29970,29971,29974,29973,29972,29974,29972,29973,29975,29976,29980,29981,29981,29982,29983,29982,29981,29978]} 1. d4 {[%emt 0:00:03]} d5 {[%emt 0:00:09]} 2. Bf4 {[%emt 0:00:06]} Nf6 {[%emt 0:00:08]} 3. e3 {[%emt 0:00:06]} c5 {[%emt 0:01:06]} 4. Nf3 {[%emt 0:00:15]} Nc6 {[%emt 0:00:19]} 5. Nbd2 {[%emt 0:00:54]} cxd4 {[%emt 0:06:30]} 6. exd4 {[%emt 0:00:07]} Bg4 {[%emt 0:00:26]} 7. c3 {[%emt 0:03:20]} e6 {[%emt 0:01:47]} 8. Qb3 {[%emt 0:02:05]} Qc8 {[%emt 0:15:44]} 9. Bd3 {[%emt 0:02:46]} Be7 {[%emt 0:02:35]} 10. O-O {[%emt 0:01:47]} O-O {[%emt 0:01:37]} 11. Ne5 {[%emt 0:02:36]} Bh5 {[%emt 0:11:40]} 12. Qc2 {[%emt 0:08:49]} Bd6 {[%emt 0:05:58] B13: Caro-Kann: Exchange Variation and Panov-Botvinnik Attack.} 13. h3 {[%emt 0:07:52] aiming for g4.} Qc7 {[%emt 0:11:12][%cal Rc6e5] [#]} 14. g4 $146 {[%emt 0:07:43]} (14. Rae1 $142) ({Predecessor:} 14. Rfe1 Rfc8 15. Nxc6 Bxf4 16. Ne5 Bg6 17. Nxg6 Bxd2 18. Qxd2 hxg6 19. Re5 a6 20. a4 {½-½ (50) Sinygovsky,V (1313)-Markus,R (2181) LSS email 2010}) 14... Bg6 $11 {[%emt 0:05:18] The position is equal.} 15. Nxg6 {[%emt 0:01:42]} fxg6 {[%emt 0:04:43]} 16. Bxd6 {[%emt 0:02:44]} Qxd6 {[%emt 0:00:05]} 17. Rae1 {[%emt 0:01:14]} Qf4 {[%emt 0:04:04][%cal Of6g4]} 18. Re3 {[%emt 0:02:08]} Rac8 {[%emt 0:02:31][%cal Oc6d4]} 19. Qd1 {[%emt 0:01:38]} e5 {[%emt 0:02:53]} 20. dxe5 {[%emt 0:02:55]} Nxe5 {[%emt 0:00:09]} 21. Qe2 {[%emt 0:00:57][%mdl 8192]} (21. Be2 $11) 21... Rce8 $1 $19 {[%emt 0:04:02][%cal Re5g4] White must now prevent ...Nexg4!} 22. Re1 $2 {[%emt 0:17:08] [#]} (22. Rb1) 22... Nexg4 $1 {[%emt 0:01:34][%mdl 512]} 23. hxg4 {[%emt 0:00:12] [#]} Nxg4 $1 {[%emt 0:00:04]} 24. Nf1 {[%emt 0:00:55] Against Qh2+} Nxe3 {[%emt 0:09:21]} 25. Nxe3 {[%emt 0:05:17]} Qg5+ {[%emt 0:00:17]} (25... Qh4 26. Qf1 $15) 26. Kf1 {[%emt 0:04:45]} Qh4 {[%emt 0:00:10][%cal Rh4h1]} 27. Qd2 $2 {[%emt 0:05:50]} (27. Kg2) 27... Qh1+ {[%emt 0:00:06]} 28. Ke2 {[%emt 0:00:05]} Qf3+ {[%emt 0:01:44]} 29. Kf1 {[%emt 0:00:04]} h5 $2 {[%emt 0:02:06]} (29... Re5 $1 $19 {[%cal Re5h5]} 30. Ng2 Rg5 $3 {[%mdl 512]}) 30. Bxg6 {[%emt 0:01:59][%mdl 8192]} (30. Kg1 $11 {and White is okay.}) 30... Re5 {[%emt 0:03:05] Hoping for ...Rf4.} 31. Bc2 {[%emt 0:04:54]} h4 $2 {[%emt 0:00:22]} (31... Qh1+ 32. Ke2 Qf3+ 33. Kd3 $17) ({Black should play} 31... Rf4 $19 {( -> ...Rh4)} 32. Bb3 (32. Ng2 $2 Rh4 $19) 32... Kf8 33. Bxd5 Rxd5 34. Nxd5 Rh4 35. Re8+ Kxe8 36. Qe3+ Qxe3 37. Nxe3 Rh1+ 38. Kg2 Rb1) 32. Bd1 $2 {[%emt 0:00:22]} (32. Bb3 $1 $15 Rff5 33. Bxd5+ Rxd5 34. Nxd5 Rxd5 35. Qe3 Qxe3 36. Rxe3) 32... Qg3 $2 {[%emt 0:01:22]} ({Inferior is} 32... Qh1+ 33. Ke2 Qf3+ 34. Kf1 $17) (32... Qf4 $19 {...h3 is the strong threat.} 33. Kg1 (33. Bb3 $2 Kh8 $19) 33... g6) 33. Ng4 $15 {[%emt 0:02:33] [#]} Ref5 {[%emt 0:02:39] [#]} ({But not} 33... Rxe1+ 34. Qxe1 Qf4 35. Qe6+ Qf7 36. Qxf7+ Kxf7 37. Ne5+ Ke6 38. Ng6 $16) (33... h3 $1 $11 34. Rxe5 Qg2+ 35. Ke1 Qg1+ 36. Ke2 Qxg4+ 37. Kd3 Qc4+ 38. Kc2 h2) 34. Qe3 {[%emt 0:00:18] The board is on fire.} (34. Re3 $1 $16 {[%cal Re3g3]} Qf4 35. Kg2) 34... Qd6 {[%emt 0:01:04]} (34... Rf4 $14) 35. Qe6+ {[%emt 0:00:27]} Qxe6 {[%emt 0:00:08]} 36. Rxe6 {[%emt 0:00:04]} h3 {[%emt 0:00:16]} (36... Rd8 $16) 37. Re3 $18 {[%emt 0:01:47]} h2 {[%emt 0:01:13]} 38. Rh3 {[%emt 0:00:07]} g6 $2 {[%emt 0:00:32]} (38... Kf7 {is more resistant.} 39. Rxh2 Ke7) 39. Nh6+ {[%emt 0:00:17]} Kg7 {[%emt 0:00:18]} 40. Nxf5+ {[%emt 0:00:05]} Rxf5 {[%emt 0:00:19]} 41. Rxh2 {[%emt 0:30:07][%mdl 4096] Endgame KRB-KR} b6 {[%emt 0:01:10]} 42. Bc2 {[%emt 0:00:00]} Rf6 {[%emt 0:07:06]} 43. Rg2 {[%emt 0:00:00][%cal Og2g6] Rxg6+! would kill now.} Kh6 {[%emt 0:03:04] [#]} 44. Rxg6+ $1 {[%emt 0:00:00] White mates.} Rxg6 {[%emt 0:00:12]} 45. Bxg6 {[%emt 0:00:00]} Kxg6 {[%emt 0:00:03] KP-KP} 46. Ke2 {[%emt 0:00:00]} Kf5 {[%emt 0:00:20]} 47. Ke3 {[%emt 0:00:00]} Ke5 {[%emt 0:00:35]} 48. Kd3 {[%emt 0:00:00]} b5 {[%emt 0:00:25]} 49. b3 {[%emt 0:00:00]} a5 {[%emt 0:01:17]} 50. a3 {[%emt 0:00:00]} Kd6 {[%emt 0:03:21]} 51. Kd4 {[%emt 0:00:00]} Kc6 {[%emt 0:00:06]} 52. f4 {[%emt 0:00:00][%cal Bf2f4,Bf4f5][%mdl 32]} Kd6 {[%emt 0:00:17]} 53. f5 {[%emt 0:00:00] Weighted Error Value: White=0.57/Black=0.82} 1-0

[Event "44th Chess Olympiad Women 2022"]
[Site "Chennai"]
[Date "2022.08.02"]
[Round "5.47"]
[White "Yu, Weiyang"]
[Black "Stagno, Milena"]
[Result "1-0"]
[ECO "B38"]
[WhiteElo "1504"]
[BlackElo "1448"]
[Annotator "NA RC COMBH"]
[PlyCount "53"]
[EventDate "2022.07.29"]
[EventType "team-tourn"]
[EventCountry "IND"]
[SourceTitle "playchess.com"]
[Source "ChessBase"]
[SourceQuality "1"]
[WhiteTeam "New Zealand"]
[BlackTeam "Malta"]
[WhiteTeamCountry "NZL"]
[BlackTeamCountry "MLT"]
[TimeControl "40/5400+30:1800+30"]

1. e4 {[%emt 0:00:02]} c5 {[%emt 0:00:17]} 2. Nf3 {[%emt 0:00:05]} Nc6 {[%emt 0:00:11]} 3. d4 {[%emt 0:00:05]} cxd4 {[%emt 0:00:12]} 4. Nxd4 {[%emt 0:00:06]} g6 {[%emt 0:00:15]} 5. c4 {[%emt 0:00:05]} Bg7 {[%emt 0:00:12]} 6. Be3 {[%emt 0:00:08]} Nf6 {[%emt 0:00:16]} 7. Nc3 {[%emt 0:00:10]} O-O {[%emt 0:00:14]} 8. Be2 {[%emt 0:00:06]} d6 {[%emt 0:00:51]} 9. O-O {[%emt 0:00:58]} Bd7 {[%emt 0:02:11]} 10. f3 {[%emt 0:00:26]} Rc8 {[%emt 0:03:55]} 11. Rc1 {[%emt 0:03:11]} a6 {[%emt 0:04:51]} 12. Qd2 {[%emt 0:06:13]} Ne5 {[%emt 0:04:35]} 13. b3 {[%emt 0:07:09]} Bc6 {[%emt 0:08:58]} 14. Kh1 {[%emt 0:11:25]} Qd7 {[%emt 0:12:36]} 15. Bh6 {[%emt 0:07:27]} Rfd8 {[%emt 0:08:36]} 16. Bxg7 {[%emt 0:01:21]} Kxg7 {[%emt 0:00:06]} 17. Rcd1 {[%emt 0:04:39]} b6 {[%emt 0:15:24]} 18. Nxc6 {[%emt 0:03:40]} Qxc6 {[%emt 0:00:27]} 19. Nd5 {[%emt 0:02:04]} Ned7 {[%emt 0:03:32]} 20. Nxe7 {[%emt 0:01:42]} Qb7 {[%emt 0:06:52]} 21. Nxc8 {[%emt 0:00:27]} Rxc8 {[%emt 0:00:04]} 22. Qxd6 {[%emt 0:01:07]} Nc5 {[%emt 0:03:16]} 23. e5 {[%emt 0:02:35]} Ne8 {[%emt 0:00:41]} 24. Qd5 {[%emt 0:01:14]} Qe7 {[%emt 0:05:23]} 25. f4 {[%emt 0:02:21]} Nb7 {[%emt 0:04:23]} 26. f5 {[%emt 0:01:22]} Rd8 {[%emt 0:00:18]} 27. f6+ {[%emt 0:00:30]} 1-0

[Event "44th Chess Olympiad Women 2022"]
[Site "Chennai"]
[Date "2022.08.02"]
[Round "5.47"]
[White "Psaila, Uranchimeg"]
[Black "Ning, Isabelle Yixuan"]
[Result "0-1"]
[ECO "A48"]
[WhiteElo "1395"]
[BlackElo "1853"]
[Annotator "NA RC COMBH"]
[PlyCount "44"]
[EventDate "2022.07.29"]
[EventType "team-tourn"]
[EventCountry "IND"]
[SourceTitle "playchess.com"]
[Source "ChessBase"]
[SourceQuality "1"]
[WhiteTeam "Malta"]
[BlackTeam "New Zealand"]
[WhiteTeamCountry "MLT"]
[BlackTeamCountry "NZL"]
[TimeControl "40/5400+30:1800+30"]

1. d4 {[%emt 0:00:06]} Nf6 {[%emt 0:00:08]} 2. Bf4 {[%emt 0:00:17]} g6 {[%emt 0:00:15]} 3. Nf3 {[%emt 0:00:28]} Bg7 {[%emt 0:00:24]} 4. c3 {[%emt 0:00:17]} O-O {[%emt 0:00:42]} 5. h3 {[%emt 0:01:08]} d6 {[%emt 0:02:07]} 6. e3 {[%emt 0:00:23]} Nbd7 {[%emt 0:01:23]} 7. Nbd2 {[%emt 0:02:55]} c5 {[%emt 0:04:41]} 8. Be2 {[%emt 0:00:59]} b6 {[%emt 0:02:44]} 9. O-O {[%emt 0:01:18]} Bb7 {[%emt 0:01:24]} 10. a4 {[%emt 0:01:39]} a6 {[%emt 0:03:03]} 11. Bh2 {[%emt 0:00:52]} Bc6 {[%emt 0:03:19]} 12. Qb3 {[%emt 0:10:18]} Qc7 {[%emt 0:06:04]} 13. Qa3 {[%emt 0:05:41]} Qb7 {[%emt 0:03:17]} 14. Rfb1 {[%emt 0:09:51]} b5 {[%emt 0:06:04]} 15. b3 {[%emt 0:03:25]} b4 {[%emt 0:02:28]} 16. cxb4 {[%emt 0:06:06]} cxb4 {[%emt 0:00:13]} 17. Qc1 {[%emt 0:00:28]} Rfc8 {[%emt 0:05:35]} 18. Qf1 {[%emt 0:01:13]} Nd5 {[%emt 0:04:58]} 19. Rc1 {[%emt 0:02:33]} Nc3 {[%emt 0:03:00]} 20. Nb1 {[%emt 0:04:44]} Nxe2+ {[%emt 0:01:58]} 21. Qxe2 {[%emt 0:00:15]} Bxf3 {[%emt 0:00:33]} 22. Qxf3 {[%emt 0:00:12]} Rxc1+ {[%emt 0:00:09]} 0-1

[Event "44th Chess Olympiad Women 2022"]
[Site "Chennai"]
[Date "2022.08.02"]
[Round "5.48"]
[White "Almanzar Vasquez, Jeniffer Maria"]
[Black "Al Ghafri, Alanoud"]
[Result "1-0"]
[ECO "C45"]
[WhiteElo "1762"]
[BlackElo "1259"]
[Annotator "NA RC COMBH"]
[PlyCount "87"]
[EventDate "2022.07.29"]
[EventType "team-tourn"]
[EventCountry "IND"]
[SourceTitle "playchess.com"]
[Source "ChessBase"]
[SourceQuality "1"]
[WhiteTeam "Dominican Republic"]
[BlackTeam "OMA"]
[WhiteTeamCountry "DOM"]
[TimeControl "40/5400+30:1800+30"]

1. e4 {[%emt 0:00:21]} e5 {[%emt 0:00:05]} 2. Nf3 {[%emt 0:00:05]} Nc6 {[%emt 0:00:07]} 3. d4 {[%emt 0:00:13]} exd4 {[%emt 0:00:30]} 4. Nxd4 {[%emt 0:00:07]} Bc5 {[%emt 0:01:13]} 5. Nb3 {[%emt 0:00:21]} Bb6 {[%emt 0:01:21]} 6. Nc3 {[%emt 0:00:08]} d6 {[%emt 0:01:58]} 7. Qe2 {[%emt 0:05:42]} Nf6 {[%emt 0:02:33]} 8. Bg5 {[%emt 0:01:33]} Ne5 {[%emt 0:06:41]} 9. Nd5 {[%emt 0:04:07]} Ned7 {[%emt 0:01:48]} 10. O-O-O {[%emt 0:02:14]} O-O {[%emt 0:01:45]} 11. f3 {[%emt 0:07:37]} c6 {[%emt 0:06:28]} 12. Nxf6+ {[%emt 0:01:58]} Nxf6 {[%emt 0:21:10]} 13. e5 {[%emt 0:01:05]} Re8 {[%emt 0:00:36]} 14. Rxd6 {[%emt 0:01:44]} Qxd6 {[%emt 0:02:17]} 15. exd6 {[%emt 0:00:20]} Rxe2 {[%emt 0:00:34]} 16. Bxe2 {[%emt 0:00:02]} Nd5 {[%emt 0:02:09]} 17. c4 {[%emt 0:07:18]} Be3+ {[%emt 0:05:08]} 18. Bxe3 {[%emt 0:00:13]} Nxe3 {[%emt 0:00:06]} 19. Nc5 {[%emt 0:03:44]} b6 {[%emt 0:05:29]} 20. d7 {[%emt 0:00:42]} Bxd7 {[%emt 0:02:12]} 21. Nxd7 {[%emt 0:00:08]} f6 {[%emt 0:00:28]} 22. Kd2 {[%emt 0:01:10]} Nxg2 {[%emt 0:02:15]} 23. Nxf6+ {[%emt 0:01:10]} gxf6 {[%emt 0:00:17]} 24. Rg1 {[%emt 0:00:05]} Kf7 {[%emt 0:05:36]} 25. Rxg2 {[%emt 0:00:10]} Rd8+ {[%emt 0:00:42]} 26. Bd3 {[%emt 0:00:36]} h6 {[%emt 0:00:55]} 27. Kc3 {[%emt 0:00:54]} Rd7 {[%emt 0:05:13]} 28. Be4 {[%emt 0:00:42]} c5 {[%emt 0:01:07]} 29. Bd5+ {[%emt 0:00:33]} Ke7 {[%emt 0:01:29]} 30. Rg6 {[%emt 0:00:36]} h5 {[%emt 0:06:20]} 31. h4 {[%emt 0:00:50]} Kf8 {[%emt 0:06:00]} 32. Rxf6+ {[%emt 0:01:22]} Kg7 {[%emt 0:00:13]} 33. Rf5 {[%emt 0:00:26]} Kg6 {[%emt 0:00:53]} 34. Rg5+ {[%emt 0:00:34]} Kh6 {[%emt 0:00:55]} 35. f4 {[%emt 0:02:01]} Re7 {[%emt 0:00:25]} 36. Kd2 {[%emt 0:00:16]} Re8 {[%emt 0:01:00]} 37. f5 {[%emt 0:00:37]} Rf8 {[%emt 0:02:36]} 38. Be6 {[%emt 0:03:50]} Rf6 {[%emt 0:00:32]} 39. Rg8 {[%emt 0:01:17]} Kh7 {[%emt 0:01:01]} 40. Ra8 {[%emt 0:04:44]} Kh6 {[%emt 0:02:05]} 41. Ke3 {[%emt 0:30:44]} Kg7 {[%emt 0:36:07]} 42. Kf4 {[%emt 0:00:30]} Rf8 {[%emt 0:00:00]} 43. Rxf8 {[%emt 0:00:00]} Kxf8 {[%emt 0:00:00]} 44. Kg5 {[%emt 0:00:00]} 1-0

[Event "44th Chess Olympiad Women 2022"]
[Site "Chennai"]
[Date "2022.08.02"]
[Round "5.48"]
[White "Al Aisaee, Anat"]
[Black "Rosario Almanzar, Raydily"]
[Result "0-1"]
[ECO "B38"]
[WhiteElo "1681"]
[BlackElo "1882"]
[Annotator "NA RC COMBH"]
[PlyCount "106"]
[EventDate "2022.07.29"]
[EventType "team-tourn"]
[EventCountry "IND"]
[SourceTitle "playchess.com"]
[Source "ChessBase"]
[SourceQuality "1"]
[WhiteTeam "OMA"]
[BlackTeam "Dominican Republic"]
[BlackTeamCountry "DOM"]
[TimeControl "40/5400+30:1800+30"]

1. e4 {[%emt 0:00:04]} c5 {[%emt 0:00:31]} 2. c4 {[%emt 0:00:34]} Nc6 {[%emt 0:00:57]} 3. Nf3 {[%emt 0:00:45]} d6 {[%emt 0:03:59]} 4. d4 {[%emt 0:03:25]} cxd4 {[%emt 0:00:00]} 5. Nxd4 {[%emt 0:00:27]} Nf6 {[%emt 0:00:00]} 6. Nc3 {[%emt 0:01:35]} g6 {[%emt 0:00:00]} 7. Be2 {[%emt 0:01:41]} Bg7 {[%emt 0:00:00]} 8. Be3 {[%emt 0:02:35]} Bd7 {[%emt 0:03:57]} 9. O-O {[%emt 0:04:10]} O-O {[%emt 0:00:18]} 10. Rc1 {[%emt 0:03:43]} Nxd4 {[%emt 0:03:32]} 11. Bxd4 {[%emt 0:00:31]} Bc6 {[%emt 0:00:34]} 12. f3 {[%emt 0:01:27]} Re8 {[%emt 0:13:19]} 13. Qd2 {[%emt 0:04:24]} Qa5 {[%emt 0:08:12]} 14. Rfd1 {[%emt 0:05:43]} Rac8 {[%emt 0:05:55]} 15. Kh1 {[%emt 0:08:54]} b6 {[%emt 0:09:18]} 16. Rc2 {[%emt 0:10:52]} h5 {[%emt 0:13:43]} 17. Rdc1 {[%emt 0:10:57]} Kh7 {[%emt 0:01:09]} 18. Be3 {[%emt 0:01:23]} Nd7 {[%emt 0:08:57]} 19. b3 {[%emt 0:03:37]} Bb7 {[%emt 0:02:56]} 20. Nd5 {[%emt 0:05:17]} Qxd2 {[%emt 0:00:31]} 21. Bxd2 {[%emt 0:00:24]} Nc5 {[%emt 0:01:55]} 22. Bf1 {[%emt 0:05:27]} Bh6 {[%emt 0:04:30]} 23. Bxh6 {[%emt 0:03:43]} Kxh6 {[%emt 0:00:02]} 24. g3 {[%emt 0:00:57]} Rcd8 {[%emt 0:08:50]} 25. Nc7 {[%emt 0:08:19]} Rf8 {[%emt 0:01:09]} 26. Rd2 {[%emt 0:01:48]} g5 {[%emt 0:00:54]} 27. Bh3 {[%emt 0:00:48]} g4 {[%emt 0:00:51]} 28. Bg2 {[%emt 0:01:52]} gxf3 {[%emt 0:00:54]} 29. Bxf3 {[%emt 0:01:22]} Bxe4 {[%emt 0:04:45]} 30. Bxe4 {[%emt 0:00:18]} Nxe4 {[%emt 0:00:01]} 31. Re2 {[%emt 0:00:18]} Rd7 {[%emt 0:00:11]} 32. Nd5 {[%emt 0:00:18]} f5 {[%emt 0:00:30]} 33. Rf1 {[%emt 0:01:11]} Kg7 {[%emt 0:02:24]} 34. Nf4 {[%emt 0:00:33]} Rh8 {[%emt 0:00:48]} 35. Ne6+ {[%emt 0:00:25]} Kg6 {[%emt 0:00:12]} 36. Rxe4 {[%emt 0:00:32]} fxe4 {[%emt 0:00:17]} 37. Nf8+ {[%emt 0:00:12]} Rxf8 {[%emt 0:00:14]} 38. Rxf8 {[%emt 0:00:04]} e5 {[%emt 0:00:51]} 39. Rf2 {[%emt 0:01:05]} h4 {[%emt 0:01:44]} 40. Kg2 {[%emt 0:01:35]} hxg3 {[%emt 0:00:46]} 41. hxg3 {[%emt 0:30:18]} Kg5 {[%emt 0:30:39]} 42. Re2 {[%emt 0:00:59]} Kf5 {[%emt 0:00:32]} 43. Re3 {[%emt 0:00:10]} d5 {[%emt 0:00:22]} 44. cxd5 {[%emt 0:00:49]} Rxd5 {[%emt 0:00:02]} 45. Re2 {[%emt 0:01:30]} Rd3 {[%emt 0:00:54]} 46. Kh3 {[%emt 0:02:49]} e3 {[%emt 0:00:49]} 47. Kh4 {[%emt 0:03:01]} Ke4 {[%emt 0:00:20]} 48. g4 {[%emt 0:01:05]} Kf3 {[%emt 0:00:34]} 49. Re1 {[%emt 0:00:33]} Kf2 {[%emt 0:00:08]} 50. Rc1 {[%emt 0:00:22]} e2 {[%emt 0:00:07]} 51. Rh1 {[%emt 0:00:08]} Rd1 {[%emt 0:00:11]} 52. Rh2+ {[%emt 0:00:01]} Kf3 {[%emt 0:00:21]} 53. Rh3+ {[%emt 0:00:21]} Kf4 {[%emt 0:00:15]} 0-1

[Event "44th Chess Olympiad Women 2022"]
[Site "Chennai"]
[Date "2022.08.02"]
[Round "5.48"]
[White "Al Bulushi, Rawan"]
[Black "Diaz Cesar, Wilsaida Pieranlly"]
[Result "1/2-1/2"]
[ECO "A16"]
[WhiteElo "1442"]
[BlackElo "1834"]
[Annotator "NA RC COMBH"]
[PlyCount "74"]
[EventDate "2022.07.29"]
[EventType "team-tourn"]
[EventCountry "IND"]
[SourceTitle "playchess.com"]
[Source "ChessBase"]
[SourceQuality "1"]
[WhiteTeam "OMA"]
[BlackTeam "Dominican Republic"]
[BlackTeamCountry "DOM"]
[TimeControl "40/5400+30:1800+30"]

1. c4 {[%emt 0:00:13]} Nf6 {[%emt 0:01:25]} 2. g3 {[%emt 0:01:21]} g6 {[%emt 0:00:27]} 3. Bg2 {[%emt 0:01:04]} Bg7 {[%emt 0:00:08]} 4. Nf3 {[%emt 0:01:17]} d6 {[%emt 0:00:22]} 5. Nc3 {[%emt 0:05:00]} Nbd7 {[%emt 0:05:00]} 6. d3 {[%emt 0:04:45]} O-O {[%emt 0:01:02]} 7. O-O {[%emt 0:00:28]} c6 {[%emt 0:01:01]} 8. Re1 {[%emt 0:06:24]} e5 {[%emt 0:01:26]} 9. e4 {[%emt 0:06:54]} Re8 {[%emt 0:10:04]} 10. d4 {[%emt 0:07:55]} Qe7 {[%emt 0:04:34]} 11. d5 {[%emt 0:12:16]} c5 {[%emt 0:09:57]} 12. a4 {[%emt 0:06:56]} Nb8 {[%emt 0:04:07]} 13. Bd2 {[%emt 0:04:33]} Na6 {[%emt 0:01:01]} 14. Na2 {[%emt 0:01:44]} Nd7 {[%emt 0:04:02]} 15. Qc2 {[%emt 0:04:04]} Qf8 {[%emt 0:01:53]} 16. b4 {[%emt 0:03:09]} cxb4 {[%emt 0:00:46]} 17. Nxb4 {[%emt 0:01:04]} Ndc5 {[%emt 0:03:30]} 18. Nxa6 {[%emt 0:01:31]} Nxa6 {[%emt 0:00:18]} 19. Be3 {[%emt 0:01:55]} Bg4 {[%emt 0:06:23]} 20. Rab1 {[%emt 0:01:13]} Qe7 {[%emt 0:02:01]} 21. h3 {[%emt 0:01:07]} Bxf3 {[%emt 0:00:37]} 22. Bxf3 {[%emt 0:00:21]} Rec8 {[%emt 0:00:23]} 23. Bg2 {[%emt 0:01:23]} Rc7 {[%emt 0:01:44]} 24. Rec1 {[%emt 0:02:03]} h5 {[%emt 0:02:24]} 25. Qd2 {[%emt 0:01:29]} Qd7 {[%emt 0:01:12]} 26. Qa2 {[%emt 0:01:13]} Kh7 {[%emt 0:02:46]} 27. h4 {[%emt 0:02:12]} Bh6 {[%emt 0:00:50]} 28. Bxh6 {[%emt 0:01:30]} Kxh6 {[%emt 0:00:30]} 29. Qd2+ {[%emt 0:01:43]} Kg7 {[%emt 0:00:17]} 30. f4 {[%emt 0:01:19]} exf4 {[%emt 0:08:46]} 31. Qxf4 {[%emt 0:00:38]} Nc5 {[%emt 0:00:49]} 32. e5 {[%emt 0:01:14]} dxe5 {[%emt 0:02:19]} 33. Qxe5+ {[%emt 0:00:20]} f6 {[%emt 0:00:27]} 34. Qd4 {[%emt 0:01:45]} Qd6 {[%emt 0:01:09]} 35. Qf4 {[%emt 0:02:44]} Rd8 {[%emt 0:05:39]} 36. Qxd6 {[%emt 0:02:05]} Rxd6 {[%emt 0:01:38]} 37. a5 {[%emt 0:04:04]} f5 {[%emt 0:01:15]} 1/2-1/2